Cogmind - Beta 16.1 @@@ ROGUE MODE // 2026.03.28 @ 21:26:54 Player: vostSive Result: Destroyed by Y-72 Warden with Quantum Rifle Performance ------------- Evolutions (6) 3000 Regions Visited (12) 2400 Robots Destroyed (13) 65 Value Destroyed (873) 873 Prototype IDs (4) 80 Alien Tech Used (0) 0 Bonus (1670) 1670 TOTAL SCORE: 8088 Bonus ------- Pacifist 470 Entered Garrisons 200 Used RIF Installer 500 Entered DSFs 500 Cogmind --------- Core Integrity 0/1150 Matter 293/300 Energy 13/100 System Corruption 4% Temperature Cool (9) Movement Flying (80) Location -4/Armory Parts ------- > --- POWER (2) -------- (None) > --- PROPULSION (6) --- Centrium Leg Centrium Leg Centrium Leg Centrium Leg Field Propulsion Array > --- UTILITY (9) ------ Medium Storage Unit Improved Sensor Array Improved Signal Interpreter Hacking Suite > --- WEAPON (2) ------- Spear > --- INVENTORY (10) --- Centrium Leg Centrium Leg Centrium Leg Centrium Leg Field Propulsion Array Medium Storage Unit Enhanced Quantum Rifle Enhanced Quantum Rifle Enhanced Quantum Rifle Peak State ------------ > --- POWER ------------ Light Antimatter Reactor > --- PROPULSION ------- Centrium Leg Centrium Leg Centrium Leg Centrium Leg Field Propulsion Array > --- UTILITY ---------- Medium Storage Unit Improved Sensor Array Improved Signal Interpreter Long-range Terrain Scanner Advanced Terrain Scan Processor Hacking Suite > --- WEAPON ----------- Improved Plasma Cutter Spear > --- INVENTORY -------- Centrium Leg Centrium Leg Centrium Leg Centrium Leg Gyrokinetic Inverter Improved Linear Gravjet Medium Storage Unit Heavy Gauss Cannon Heavy Gauss Cannon Heavy Gauss Cannon [Rating: 95] Favorites ----------- Power Light Nuclear Core Power Core Light Nuclear Core Reactor Light Antimatter Reactor Propulsion Xenon Bombardment Thruster Leg Centrium Leg Hover Unit Antigrav System Flight Unit Xenon Bombardment Thruster Utility Improved Signal Interpreter Device Improved Sensor Array Storage Medium Storage Unit Processor Improved Signal Interpreter Hackware Hacking Suite Protection Hardened Medium Armor Plating Weapon Mining Claw Special Weapon Improved Remote Datajack Slashing Weapon Mining Claw Piercing Weapon Spear Special Melee Weapon Datajack Build | -11 -10 -10 -9 -9 -8 -7 -7 -6 -6 -5 -4 -4 ------- Run | Yrd Mat Min Mat Min Mat Fac Gar Fac DSF Fac Fac Arm Slots Evolved 12 | . . . 2 . 2 2 . 2 . 2 2 . Power 1 | . . . . . . . . 1 . . . . Propulsion 4 | . . . 1 . 1 . . . . 1 1 . Utility 7 | . . . 1 . 1 2 . 1 . 1 1 . Weapon . | . . . . . . . . . . . . . Parts Attached 51 | . 1 2 . . 12 4 . 1 . 2 16 13 Power 6 | . . . . . 1 1 . . . . 3 1 Engine . | . . . . . . . . . . . . . Core 5 | . . . . . 1 1 . . . . 3 . Reactor 1 | . . . . . . . . . . . . 1 Propulsion 21 | . . . . . 7 . . . . . 8 6 Treads . | . . . . . . . . . . . . . Leg 5 | . . . . . . . . . . . . 5 Wheel . | . . . . . . . . . . . . . Hover 7 | . . . . . . . . . . . 7 . Flight 9 | . . . . . 7 . . . . . 1 1 Utility 19 | . 1 1 . . 3 3 . 1 . 1 5 4 Device 12 | . 1 1 . . 2 2 . 1 . . 3 2 Storage 2 | . . . . . . . . . . . 1 1 Processor 2 | . . . . . 1 . . . . . . 1 Hackware 2 | . . . . . . 1 . . . 1 . . Protection 1 | . . . . . . . . . . . 1 . Artifact . | . . . . . . . . . . . . . Weapon 5 | . . 1 . . 1 . . . . 1 . 2 Energy Gun . | . . . . . . . . . . . . . Energy Cannon . | . . . . . . . . . . . . . Ballistic Gun . | . . . . . . . . . . . . . Ballistic Cannon . | . . . . . . . . . . . . . Launcher . | . . . . . . . . . . . . . Special Weapon 2 | . . . . . . . . . . 1 . 1 Impact Weapon . | . . . . . . . . . . . . . Slashing Weapon 1 | . . . . . 1 . . . . . . . Piercing Weapon 1 | . . . . . . . . . . . . 1 Special Melee Weapon 1 | . . 1 . . . . . . . . . . Unidentified Prototypes 2 | . . 1 . . . 1 . . . . . . Parts Lost 33 | . . . . . 2 . 1 . 1 . 25 4 Power 6 | . . . . . . . . . . . 5 1 Propulsion 13 | . . . . . 1 . . . 1 . 11 . Utility 10 | . . . . . . . 1 . . . 7 2 Weapon 4 | . . . . . 1 . . . . . 2 1 Highest Loss Streak 25 | . . . . . 2 . 1 . 1 . 25 4 To Critical Strikes . | . . . . . . . . . . . . . Average Backups 3 | . . . 2 2 3 4 5 4 3 3 5 5 Power . | . . . . . . . 1 . . . . . Propulsion 1 | . . . . . . 1 1 1 . . 2 4 Utility 1 | . . . 2 2 3 3 3 3 2 2 2 . Weapon . | . . . . . . . . . . . . . Tool/Special . | . . . . . . . . . . . . . Unused Backups 16 | . . . . . . . 1 . . 1 2 12 Power . | . . . . . . . . . . . . . Propulsion 5 | . . . . . . . . . . . . 5 Utility 5 | . . . . . . . 1 . . 1 2 1 Weapon 6 | . . . . . . . . . . . . 6 Tool/Special . | . . . . . . . . . . . . . Average Slot Usage (%) 56 | . 10 27 22 22 36 81 91 83 83 79 70 62 Core 4 | . . . . . . 7 7 13 13 11 8 . Leg 3 | . . . . . . . . . . . . 20 Hover 1 | . . . . . . . . . . . 9 . Flight 11 | . . . . . 9 30 30 26 26 23 11 4 Device 15 | . 10 20 11 11 6 23 29 23 23 21 17 9 Processor 5 | . . . . . 5 7 7 6 6 5 5 9 Hackware 4 | . . . . . . 4 7 6 6 10 9 5 Special Weapon 1 | . . . . . . . . . . 3 3 4 Slashing Weapon 2 | . . . . . 8 6 7 6 6 1 1 . Special Melee Weapon 2 | . . 7 11 11 6 . . . . . . . Peak Build Rating 95 | . 1 9 2 2 27 43 44 51 51 57 84 95 Average Rating 40 | . . 4 2 2 7 36 43 48 47 53 58 83 On Entrance 22 | . . 1 9 2 2 27 43 41 51 45 57 14 Avg Prop Armor Cover (%) 9 | . . . . . . . . . . . 1 13 Naked Turns 23 | . 23 . . . . . . . . . . . Heaviest Build 42 | . 1 6 2 2 8 16 16 23 23 25 42 29 Greatest Support 120 | 3 3 3 3 3 24 24 24 24 24 25 64 120 Greatest Overweight (x) 1 | . . 1 . . . . . . . . 1 . Average Overweight (x) . | . . . . . . . . . . . . . Largest Inventory Capacity 10 | 5 5 5 5 5 5 5 5 5 5 5 10 10 Average Capacity 5 | 5 5 5 5 5 5 5 5 5 5 5 7 6 Most Carried 10 | . . 1 2 2 5 5 5 4 3 5 10 10 Average Carried 3 | . . . 2 2 3 4 4 3 2 3 6 5 Final Capacity 10 | 5 5 5 5 5 5 5 5 5 5 5 5 10 Final Carried 10 | . . 1 2 2 5 5 5 3 3 5 4 10 Class Distribution -------------------- 31% | Mutant 20% | Hacker-Sprinter 13% | Scout 13% | Sprinter 6% | Assassin 6% | Infiltrator-Sprinter 5% | Commander-Mutant 3% | Hacker-Mutant Dominant Class ---------------- Mutant | -10/Materials Mutant | -10/Mines Mutant | -9/Materials Mutant | -9/Mines Mutant | -8/Materials Sprinter | -7/Factory Infiltrator-Sprinter | -7/Garrison Infiltrator-Sprinter | -6/Factory Infiltrator-Sprinter | -6/DSF Hacker-Sprinter | -5/Factory Hacker-Sprinter | -4/Factory Scout | -4/Armory Resources | -11 -10 -10 -9 -9 -8 -7 -7 -6 -6 -5 -4 -4 ----------- Run | Yrd Mat Min Mat Min Mat Fac Gar Fac DSF Fac Fac Arm Matter Collected 814 | 200 . 108 . . 26 . . . . 88 128 264 Remotely . | . . . . . . . . . . . . . Salvage Created 715 | . . . . . 44 . . . . . 83 588 Parts 31 | . . . . . 7 . . . . . 8 16 Haulers Intercepted . | . . . . . . . . . . . . . Recyclers Shooed . | . . . . . . . . . . . . . Parts Field Recycled . | . . . . . . . . . . . . . Retrieved Matter . | . . . . . . . . . . . . . Parts Self-Destructed . | . . . . . . . . . . . . . Prevented . | . . . . . . . . . . . . . Parts Restored . | . . . . . . . . . . . . . Kills | -11 -10 -10 -9 -9 -8 -7 -7 -6 -6 -5 -4 -4 ------- Run | Yrd Mat Min Mat Min Mat Fac Gar Fac DSF Fac Fac Arm Combat Hostiles Destroyed 13 | . . . . . 3 . . . . . 2 8 Melee 11 | . . . . . 3 . . . . . 2 6 Cannons 2 | . . . . . . . . . . . . 2 Classes Destroyed 5 | . . . . . 1 . . . . . 2 2 Swarmer 3 | . . . . . 3 . . . . . . . Cutter 1 | . . . . . . . . . . . 1 . Grunt 4 | . . . . . . . . . . . . 4 Brawler 4 | . . . . . . . . . . . . 4 Programmer 1 | . . . . . . . . . . . 1 . Best Kill Streak 4 | . . . . . 2 . . . . . 1 4 Combat Bots Only 4 | . . . . . 2 . . . . . 1 4 Max Kills in Single Turn 1 | . . . . . 1 . . . . . 1 1 Gunslinging . | . . . . . . . . . . . . . Exploded . | . . . . . . . . . . . . . Melee 1 | . . . . . 1 . . . . . 1 1 Uniques/NPCs Destroyed . | . . . . . . . . . . . . . Combat | -11 -10 -10 -9 -9 -8 -7 -7 -6 -6 -5 -4 -4 -------- Run | Yrd Mat Min Mat Min Mat Fac Gar Fac DSF Fac Fac Arm Hostile Shots Fired 521 | . 1 . 11 1 71 68 80 . 4 6 203 76 Missed 256 | . . . 5 1 27 57 55 . 3 3 83 22 Hits 265 | . 1 . 6 . 44 11 25 . 1 3 120 54 Melee 6 | . . . . . . . . . . . 6 . Projectile 259 | . 1 . 6 . 44 11 25 . 1 3 114 54 Critical Strikes 12 | . . . 1 . 1 . . . 1 . 6 3 Damage Taken 4651 | . 6 . 85 . 506 83 282 . 60 28 2599 1002 Core 1885 | . 6 . 71 . 403 22 148 . 60 . 1033 142 Absorbed by Shields . | . . . . . . . . . . . . . Regen/Repaired (Parts) 53 | . . . . . . 53 . . . . . . Core Remaining (%) 81 | 100 . 97 . 82 26 . 75 . 92 100 . . Volleys Fired 30 | . . . . . . . . . . . 3 27 Largest 1 | . . . . . . . . . . . 1 1 Hottest 20 | . . . . . . . . . . . 7 20 Shots Fired 30 | . . . . . . . . . . . 3 27 Gun . | . . . . . . . . . . . . . Cannon . | . . . . . . . . . . . . . Launcher . | . . . . . . . . . . . . . Special 30 | . . . . . . . . . . . 3 27 Kinetic . | . . . . . . . . . . . . . Thermal 27 | . . . . . . . . . . . . 27 Explosive . | . . . . . . . . . . . . . Electromagnetic . | . . . . . . . . . . . . . Robot Hit Streak 14 | . . . . . . . . . . . 1 14 Robot Miss Streak 1 | . . . . . . . . . . . 1 1 Penetration Max . | . . . . . . . . . . . . . Secondary Targets . | . . . . . . . . . . . . . Shots Hit Robots 71 | . . 2 6 2 3 . . . . . 10 48 Core Hits 28 | . . . . . 3 . . . . . 4 21 Critical Kills . | . . . . . . . . . . . . . Critical Parts Destroyed . | . . . . . . . . . . . . . Critical Strikes 4 | . . . . . . . . . . . . 4 Sever 4 | . . . . . . . . . . . . 4 Melee Attacks 65 | . . 2 6 2 13 1 1 . . 1 15 24 Impact . | . . . . . . . . . . . . . Slashing 31 | . . . . . 13 1 1 . . 1 15 . Piercing 24 | . . . . . . . . . . . . 24 Sneak Attacks 30 | . . 2 6 2 . . . . . . . 20 Combat Hostiles . | . . . . . . . . . . . . . Follow-up Attacks . | . . . . . . . . . . . . . Damage Inflicted 1896 | . . . 3 . 86 . . . . . 210 1597 Guns . | . . . . . . . . . . . . . Cannons . | . . . . . . . . . . . . . Explosions . | . . . . . . . . . . . . . Melee 1425 | . . . . . 73 . . . . . 162 1190 Ramming 64 | . . . 3 . 13 . . . . . 48 . Kinetic . | . . . . . . . . . . . . . Thermal 407 | . . . . . . . . . . . . 407 Explosive . | . . . . . . . . . . . . . Electromagnetic . | . . . . . . . . . . . . . Impact . | . . . . . . . . . . . . . Slashing 235 | . . . . . 73 . . . . . 162 . Piercing 1190 | . . . . . . . . . . . . 1190 Highest Corruption 4 | . . . . . 2 . . . . . 4 4 Average Corruption 3 | . . . . . 2 . . . . . 3 4 Corruption Purged . | . . . . . . . . . . . . . Corruption Blocked . | . . . . . . . . . . . . . Effects 14 | . . . . . 1 . . . . . 1 12 Message Errors 1 | . . . . . . . . . . . . 1 Matter Fused 3 | . . . . . . . . . . . . 3 Heat Flow Errors 4 | . . . . . . . . . . . . 4 Energy Discharges 2 | . . . . . . . . . . . 1 1 Parts Rejected 1 | . . . . . 1 . . . . . . . Data Loss (minor) 1 | . . . . . . . . . . . . 1 Data Loss (major) 1 | . . . . . . . . . . . . 1 Alerts 1 | . . . . . . . . . . . . 1 Overload Shots . | . . . . . . . . . . . . . Overflow Damage 52 | . . . . . . . . . . . . 52 Projectiles 20 | . . . . . . . . . . . . 20 Explosions . | . . . . . . . . . . . . . Melee 32 | . . . . . . . . . . . . 32 Knockbacks . | . . . . . . . . . . . . . Impact . | . . . . . . . . . . . . . Kinetic . | . . . . . . . . . . . . . Secondary . | . . . . . . . . . . . . . Self-Inflicted Damage 31 | . . . 1 . 6 . . . . . 24 . Shots . | . . . . . . . . . . . . . Rammed 8 | . . . 2 . 2 . . . . . 4 . Targets Rammed 8 | . . . 2 . 2 . . . . . 4 . Kicked . | . . . . . . . . . . . . . Crushed . | . . . . . . . . . . . . . Highest Temperature 213 | . . . . . . 1 6 . . . 129 213 Average Temperature 51 | . . . . . . 1 4 . . . 43 87 Received Heat Transfer 767 | . . . 54 . 144 18 63 . . . 253 235 Siege Activations . | . . . . . . . . . . . . . Martial Activations . | . . . . . . . . . . . . . Shielding Activations . | . . . . . . . . . . . . . Robots Disrupted . | . . . . . . . . . . . . . Combat Hostiles . | . . . . . . . . . . . . . Robots Corrupted . | . . . . . . . . . . . . . Combat Hostiles . | . . . . . . . . . . . . . Parts Fried . | . . . . . . . . . . . . . Impact Corruptions . | . . . . . . . . . . . . . Robots Melted . | . . . . . . . . . . . . . Combat Hostiles . | . . . . . . . . . . . . . Parts Melted 1 | . . . . . . . . . . . . 1 Heat Transferred 962 | . . . . . . . . . . . . 962 Parts Sabotaged . | . . . . . . . . . . . . . Parts Stolen . | . . . . . . . . . . . . . Parts Stripped . | . . . . . . . . . . . . . Power Chain Reactions . | . . . . . . . . . . . . . Alert | -11 -10 -10 -9 -9 -8 -7 -7 -6 -6 -5 -4 -4 ------- Run | Yrd Mat Min Mat Min Mat Fac Gar Fac DSF Fac Fac Arm Maximum Alert Level 1 | . . . . . . . 1 . . . . . Low Security (%) 99 | 100 100 100 100 100 100 100 85 100 100 100 100 100 Level 1 . | . . . . . . . 14 . . . . . Level 2 . | . . . . . . . . . . . . . Level 3 . | . . . . . . . . . . . . . Level 4 . | . . . . . . . . . . . . . Level 5 . | . . . . . . . . . . . . . High Security . | . . . . . . . . . . . . . Max Security . | . . . . . . . . . . . . . Peak Influence 233 | . 6 . 103 31 120 102 233 121 89 46 180 90 Initial 121 | . . . . 31 . 4 74 121 84 46 2 67 Average 27 | . . . 39 18 22 28 111 121 79 12 30 40 Influence Increases 1447 | . 6 . 128 . 272 216 169 . 15 40 395 206 Destroy 0b10 Robot/C 260 | . . . . . 60 . . . . . 40 160 Destroy Leader 30 | . . . . . 10 . . . . . 20 . Trap Triggered on 0b10 10 | . . . . . . . . . . . . 10 Successful Hack 116 | . 6 . 8 . 16 36 14 . . 10 20 6 Disable Machine 45 | . . . . . 15 15 . . . 15 . . Anti-Garrison Action 50 | . . . . . . . 50 . . . . . Destroy Structure 6 | . . . . . 6 . . . . . . . Partial Spotted 180 | . . . 30 . 30 . 30 . . . 75 15 Lose Combat Pursuer 750 | . . . 90 . 135 165 75 . 15 15 240 15 Influence Decreases 1433 | . 6 . 45 82 262 121 42 112 47 124 261 331 Entered New Map 359 | . . . . 52 1 7 32 112 37 43 3 72 Time Decay 695 | . 6 . 40 30 108 114 . . . 81 97 219 Lost Part 229 | . . . . . 8 . 10 . 10 . 161 40 Lost Ally 5 | . . . 5 . . . . . . . . . Purge Threat 145 | . . . . . 145 . . . . . . . Squads Dispatched 14 | . 2 . . . 2 4 . . . . 4 2 Investigation 6 | . 1 . . . 1 3 . . . . 1 . Extermination 3 | . . . . . . 1 . . . . 1 1 Reinforcement 5 | . 1 . . . 1 . . . . . 2 1 Assault . | . . . . . . . . . . . . . Garrison . | . . . . . . . . . . . . . Intercept . | . . . . . . . . . . . . . Searches Triggered . | . . . . . . . . . . . . . Construction Impeded . | . . . . . . . . . . . . . Haulers Reinforced . | . . . . . . . . . . . . . Active Scanning Responses . | . . . . . . . . . . . . . Cargo Convoy Interrupts . | . . . . . . . . . . . . . Stealth | -11 -10 -10 -9 -9 -8 -7 -7 -6 -6 -5 -4 -4 --------- Run | Yrd Mat Min Mat Min Mat Fac Gar Fac DSF Fac Fac Arm Distress Signals 4 | . . . 1 . 1 . . . . . 1 1 Communications Jammed 15 | . . . . . . . . . . 2 13 . Distress Signals 15 | . . . . . . . . . . 2 13 . Times Spotted 125 | . 6 . 9 3 20 15 12 . 1 4 41 14 Peak Tracking Total 17 | . 4 . 6 5 17 6 12 . 1 3 13 12 Tactical Retreats 26 | . . . 2 1 4 7 2 . 1 1 7 1 ECM-based Alert Blocks 9 | . . . . . . 4 . . . 1 4 . Traps | -11 -10 -10 -9 -9 -8 -7 -7 -6 -6 -5 -4 -4 ------- Run | Yrd Mat Min Mat Min Mat Fac Gar Fac DSF Fac Fac Arm Traps Triggered 1 | . . . . . . . . . 1 . . . Indirectly . | . . . . . . . . . . . . . Trap Hack Attempts . | . . . . . . . . . . . . . Triggered . | . . . . . . . . . . . . . Disarmed . | . . . . . . . . . . . . . Reprogrammed 2 | . . . . . . . . . . . . 2 Reused 1 | . . . . . . . . . . . . 1 Traps Extracted . | . . . . . . . . . . . . . Installed . | . . . . . . . . . . . . . Triggered 1 | . . . . . . . . . . . . 1 Objects Rigged 2 | . . . . . . . . . . . 2 . Machines | -11 -10 -10 -9 -9 -8 -7 -7 -6 -6 -5 -4 -4 ---------- Run | Yrd Mat Min Mat Min Mat Fac Gar Fac DSF Fac Fac Arm Machines Disabled 4 | . . . . . 1 1 1 . . 1 . . Max in Single Turn 1 | . . . . . 1 1 1 . . 1 . . Garrison Relay 1 | . . . . . . . 1 . . . . . Machines Repaired . | . . . . . . . . . . . . . Machines Dismantled . | . . . . . . . . . . . . . Machines Sabotaged . | . . . . . . . . . . . . . Overloaded Fab Kills . | . . . . . . . . . . . . . Hacking | -11 -10 -10 -9 -9 -8 -7 -7 -6 -6 -5 -4 -4 --------- Run | Yrd Mat Min Mat Min Mat Fac Gar Fac DSF Fac Fac Arm Machines Accessed 33 | . 4 1 1 . 5 7 2 1 . 5 5 2 Terminals 19 | . 3 . 1 . 5 2 2 1 . 1 2 2 Fabricators 3 | . . . . . . 1 . . . 1 1 . Repair Stations 3 | . . . . . . 1 . . . 1 1 . Recycling Units 4 | . 1 . . . . 1 . . . 1 1 . Scanalyzers 1 | . . . . . . . . . . 1 . . Garrison Access 2 | . . . . . . 2 . . . . . . Total Hacks 89 | . 12 1 4 . 16 23 3 1 . 12 13 4 Successful 37 | . 4 1 2 . 7 9 1 1 . 7 3 2 Failed 51 | . 8 . 2 . 9 14 2 . . 4 10 2 Catastrophic 12 | . 2 . . . 3 3 1 . . 1 1 1 Database Lockouts 1 | . . . . . . . . . . 1 . . Manual 31 | . 7 . 3 . 4 8 . . . 3 5 1 Terminals 55 | . 10 . 4 . 16 8 3 1 . 2 7 4 Fabricators 8 | . . . . . . 3 . . . 3 2 . Repair Stations 7 | . . . . . . 4 . . . 2 1 . Recycling Units 11 | . 2 . . . . 3 . . . 3 3 . Scanalyzers 2 | . . . . . . . . . . 2 . . Garrison Access 5 | . . . . . . 5 . . . . . . Terminal Hacks 18 | . 1 1 2 . 6 2 1 1 . 1 1 2 Prototype ID Bank 1 | . . . . . 1 . . . . . . . Open Door 2 | . . 1 . . . . . . . . . 1 Open DSF 2 | . . . . . . . . 1 . . 1 . Branch Access Points 1 | . . . 1 . . . . . . . . . Emergency Access Points 1 | . . . . . . . 1 . . . . . Unreport Threat 1 | . . . . . 1 . . . . . . . Locate Traps 1 | . 1 . . . . . . . . . . . Reprogram Traps 1 | . . . . . . . . . . . . 1 Dispatch Records 1 | . . . . . 1 . . . . . . . Maintenance Status 1 | . . . . . . . . . . 1 . . Recall Investigation 1 | . . . . . . 1 . . . . . . Hauler Manifests 1 | . . . 1 . . . . . . . . . Zone Layout 4 | . . . . . 3 1 . . . . . . Fabricator Hacks 3 | . . . . . . 1 . . . 1 1 . Network Status 3 | . . . . . . 1 . . . 1 1 . Repair Station Hacks 5 | . . . . . . 4 . . . 1 . . Scan Component 3 | . . . . . . 2 . . . 1 . . Repair 2 | . . . . . . 2 . . . . . . Recycling Unit Hacks 2 | . 1 . . . . . . . . 1 . . Retrieve Components 2 | . 1 . . . . . . . . 1 . . Scanalyzer 1 | . . . . . . . . . . 1 . . Retrieve Study 1 | . . . . . . . . . . 1 . . Garrison Access Hacks 1 | . . . . . . 1 . . . . . . Unlock Access 1 | . . . . . . 1 . . . . . . Unauthorized Hacks 7 | . 2 . . . 1 1 . . . 2 1 . Terminals 3 | . 1 . . . 1 . . . . . 1 . Assimilate 2 | . 1 . . . 1 . . . . . . . Detonate 1 | . . . . . . . . . . . 1 . Fabricators . | . . . . . . . . . . . . . Repair Stations . | . . . . . . . . . . . . . Recycling Units 4 | . 1 . . . . 1 . . . 2 . . Reject 2 | . 1 . . . . . . . . 1 . . Recyclers 2 | . . . . . . 1 . . . 1 . . Scanalyzers . | . . . . . . . . . . . . . Garrison Access . | . . . . . . . . . . . . . Data Cores Recovered . | . . . . . . . . . . . . . Used . | . . . . . . . . . . . . . Hacking Detections 27 | . 4 . 1 . 5 6 2 . . 2 5 2 Full Trace Events 6 | . 1 . . . 1 3 . . . . 1 . Feedback Events . | . . . . . . . . . . . . . Feedback Blocked . | . . . . . . . . . . . . . Robot Schematics Acquired . | . . . . . . . . . . . . . Robots Built . | . . . . . . . . . . . . . Authchips . | . . . . . . . . . . . . . Time . | . . . . . . . . . . . . . Total Robot Build Rating . | . . . . . . . . . . . . . Part Schematics Acquired . | . . . . . . . . . . . . . Parts Built . | . . . . . . . . . . . . . Authchips . | . . . . . . . . . . . . . Time . | . . . . . . . . . . . . . Total Part Build Rating . | . . . . . . . . . . . . . Part Studies Acquired 1 | . . . . . . . . . . 1 . . Parts Repaired 2 | . . . . . . 2 . . . . . . Time 64 | . . . . . . 64 . . . . . . Parts Recycled . | . . . . . . . . . . . . . Recycled Matter . | . . . . . . . . . . . . . Retrieved Matter . | . . . . . . . . . . . . . Retrieved Components 1 | . . . . . . . . . . 1 . . Parts Scanalyzed . | . . . . . . . . . . . . . Part Schematics Acquired . | . . . . . . . . . . . . . Parts Damaged . | . . . . . . . . . . . . . Bothacking | -11 -10 -10 -9 -9 -8 -7 -7 -6 -6 -5 -4 -4 ------------ Run | Yrd Mat Min Mat Min Mat Fac Gar Fac DSF Fac Fac Arm Used RIF Installer 1 | . . . . . . . 1 . . . . . Robots Hacked 4 | . . 1 . 1 . . . . . . 2 . Non-combat 3 | . . 1 . 1 . . . . . . 1 . Combat 1 | . . . . . . . . . . . 1 . Robot Hacks Applied 5 | . . 2 . 1 . . . . . . 2 . parse_system 2 | . . 1 . . . . . . . . 1 . no_distress 3 | . . 1 . 1 . . . . . . 1 . Relay Couplers Released 3 | . . . . . . . 3 . . . . . Machine Destruction 3 | . . . . . . . 3 . . . . . Fabnet Peak Effective % . | . . . . . . . . . . . . . Robots Rewired . | . . . . . . . . . . . . . Allies Hacked . | . . . . . . . . . . . . . Hacks Repelled . | . . . . . . . . . . . . . Allies | -11 -10 -10 -9 -9 -8 -7 -7 -6 -6 -5 -4 -4 -------- Run | Yrd Mat Min Mat Min Mat Fac Gar Fac DSF Fac Fac Arm Total Allies 4 | . 1 3 . . . . . . . . . . Largest Group 4 | . 1 4 4 . . . . . . . . . Highest-Rated Group 50 | . 10 50 50 . . . . . . . . . Highest-Rated Ally 16 | . 10 16 16 . . . . . . . . . Total Orders 3 | . . 3 . . . . . . . . . . RETURN 3 | . . 3 . . . . . . . . . . Ally Attacks 13 | . . . 13 . . . . . . . . . Total Damage 164 | . . . 164 . . . . . . . . . Kills . | . . . . . . . . . . . . . Allies Corrupted . | . . . . . . . . . . . . . Allies Melted . | . . . . . . . . . . . . . Intel | -11 -10 -10 -9 -9 -8 -7 -7 -6 -6 -5 -4 -4 ------- Run | Yrd Mat Min Mat Min Mat Fac Gar Fac DSF Fac Fac Arm Active Infowar (turns) 2119 | . 75 344 101 66 228 291 98 3 34 299 288 292 Sensors 2029 | . 75 344 101 66 228 291 98 3 34 299 288 202 Terrain 290 | . . . . . . . . . . . . 290 Jamming 505 | . . . . . 1 9 . 1 . 249 245 . ECM 65 | . . . . . . 13 2 . . 13 37 . Robot Analysis Total . | . . . . . . . . . . . . . Derelict Logs Recovered 2 | . . 1 . 1 . . . . . . . . Drone Launches 3 | . . 3 . . . . . . . . . . Drone Recoveries 3 | . . 3 . . . . . . . . . . Exploration | -11 -10 -10 -9 -9 -8 -7 -7 -6 -6 -5 -4 -4 ------------- Run | Yrd Mat Min Mat Min Mat Fac Gar Fac DSF Fac Fac Arm Turns Passed 2682 | 13 98 344 101 66 337 329 98 3 34 299 433 527 Spaces Moved 3854 | 25 189 461 147 125 531 683 277 4 55 388 753 216 Core 1067 | 25 189 461 147 125 74 . . . . . 9 37 Treads . | . . . . . . . . . . . . . Legs 129 | . . . . . . . . . . . . 129 Wheels . | . . . . . . . . . . . . . Hover 216 | . . . . . . . . . . . 216 . Flight 2442 | . . . . . 457 683 277 4 55 388 528 50 Fastest Speed 26 | 50 50 50 50 50 31 31 31 31 31 31 26 50 Average Speed 43 | 50 50 64 50 50 37 31 31 31 31 31 35 98 Slowest Speed 120 | 50 50 100 50 50 50 31 31 31 31 31 111 120 Overloaded Moves . | . . . . . . . . . . . . . Propulsion Burnouts . | . . . . . . . . . . . . . Robots Hopped 33 | . . . . . 12 7 2 . . . 12 . Potential Cave-ins . | . . . . . . . . . . . . . Cave-ins Triggered . | . . . . . . . . . . . . . Exploration Rate (%) 38 | 3 40 91 17 50 58 22 41 . 85 12 23 18 Regions Visited 12 Branch Regions 3 Pre-discovered Areas 2 | . . 1 . 1 . . . . . . . . Known Exits Taken 6 | . . . 1 . 1 1 . 1 . 1 1 . Unknown Exits Taken 4 | 1 1 1 . 1 . . . . . . . . Scrap Searched 3 | . . 3 . . . . . . . . . . Spaces Dug 6 | . . . . . 6 . . . . . . . Terrain Destroyed 6 | . . . . . 6 . . . . . . . Melee 6 | . . . . . 6 . . . . . . . Projectile . | . . . . . . . . . . . . . AOE . | . . . . . . . . . . . . . Terrain Rammed . | . . . . . . . . . . . . . Walls Destroyed . | . . . . . . . . . . . . . Machines Disabled . | . . . . . . . . . . . . . Actions | -11 -10 -10 -9 -9 -8 -7 -7 -6 -6 -5 -4 -4 --------- Run | Yrd Mat Min Mat Min Mat Fac Gar Fac DSF Fac Fac Arm Total 4672 | 24 191 507 171 126 628 788 284 5 71 565 874 438 Wait 609 | . 2 42 16 . 73 103 7 . . 164 67 135 Move 3778 | 24 188 460 146 124 508 669 271 3 54 387 728 216 Hop 30 | . . . . . 10 7 2 . . . 11 . Pick Up 34 | . . 1 . . 2 . 1 . . 4 11 15 Fast Attach 40 | . 1 2 . . 11 6 . . . 2 10 8 Attach 25 | . . . . . 1 1 . 2 1 2 13 5 Detach 12 | . . . 1 . 3 1 . . 1 2 4 . Swap 2 | . . . . . 2 . . . . . . . Drop 21 | . . . . . 3 . 1 . . 3 7 7 Fire 30 | . . . . . . . . . . . 3 27 Melee 65 | . . 2 6 2 13 1 1 . . 1 15 24 Ram 8 | . . . 2 . 2 . . . . . 4 . Kick . | . . . . . . . . . . . . . Crush . | . . . . . . . . . . . . . Escape Stasis 17 | . . . . . . . 1 . 15 . 1 . Rewire . | . . . . . . . . . . . . . Trap . | . . . . . . . . . . . . . Miscellaneous 1 | . . . . . . . . . . . . 1 Route ------- -11/Scrapyard -10/Materials -10/Mines -9/Materials (discovered 2 exits: *Min x2) -9/Mines -8/Materials (discovered 3 exits: *Fac / [*Sto x2]) -7/Factory (discovered 2 exits: *Fac / Gar) -7/Garrison -6/Factory -6/DSF -5/Factory -4/Factory -4/Armory (discovered 1 exit: *Res) History --------- Turn | Location | Event 6 | -11/Scrapyard | Discovered new exit (range 14) 14 | -11/Scrapyard | Entered Materials 74 | -10/Materials | Discovered new exit (range 16) 112 | -10/Materials | Entered Mines 112 | -10/Mines | Accompanied by 1 ally 129 | -10/Mines | Met a Derelict bent on vengeance 204 | -10/Mines | Learned location of Zion (-7) 221 | -10/Mines | Discovered new exit (range 15) 282 | -10/Mines | Found the Drone Emporium 300 | -10/Mines | Found Prototype Device 300 | -10/Mines | Identified Thief Drone Bay 321 | -10/Mines | Build established: Mutant 343 | -10/Mines | Assisted by bots powering up and referring to "LRC-V3" 456 | -10/Mines | Entered Materials 456 | -9/Materials | Accompanied by 4 allies 456 | -9/Materials | Evolved 2 slots: Propulsion x1, Utility x1 503 | -9/Materials | Identified exit to Mines 515 | -9/Materials | Lost 3 allies 557 | -9/Materials | Entered Mines 558 | -9/Mines | Assembled infested the area 615 | -9/Mines | Discovered new exit (range 7) 615 | -9/Mines | Learned location of 1 exit from Materials 618 | -9/Mines | Learned location of Storage (-8) 623 | -9/Mines | Entered Materials 623 | -8/Materials | Evolved 2 slots: Propulsion x1, Utility x1 624 | -8/Materials | Identified exit to Factory 767 | -8/Materials | Discovered new exit (range 12) 817 | -8/Materials | Discovered new exit (range 15) 896 | -8/Materials | Core integrity fell below 50% 960 | -8/Materials | Entered Factory 960 | -7/Factory | Evolved 2 slots: Utility x2 1049 | -7/Factory | Repaired Imp. Sensor Array 1076 | -7/Factory | Repaired Mining Claw 1281 | -7/Factory | Discovered new exit (range 11) 1284 | -7/Factory | Identified exit to Factory 1289 | -7/Factory | Identified exit to Garrison 1289 | -7/Factory | Entered Garrison 1319 | -7/Garrison | Triggered checkpoint 1356 | -7/Garrison | Installed Relay Interface Framework 1363 | -7/Garrison | Triggered checkpoint 1363 | -7/Garrison | Triggered checkpoint 1363 | -7/Garrison | Triggered checkpoint 1371 | -7/Garrison | Triggered checkpoint 1373 | -7/Garrison | Garrison Relay disabled 1383 | -7/Garrison | Discovered exit to Factory (range 10) 1387 | -7/Garrison | Entered Factory 1387 | -6/Factory | Evolved 2 slots: Power x1, Utility x1 1390 | -6/Factory | Identified exit to DSF 1390 | -6/Factory | Entered DSF 1405 | -6/DSF | Discovered new exit (range 14) 1415 | -6/DSF | Additional patrols routed to DSF 1423 | -6/DSF | Identified exit to Factory 1424 | -6/DSF | Entered Factory 1424 | -5/Factory | Evolved 2 slots: Propulsion x1, Utility x1 1478 | -5/Factory | Spotted B-75 Beast 1515 | -5/Factory | Central database locked down 1709 | -5/Factory | Discovered new exit (range 14) 1723 | -5/Factory | Identified exit to Factory 1723 | -5/Factory | Entered another Factory area 1723 | -4/Factory | Evolved 2 slots: Propulsion x1, Utility x1 1795 | -4/Factory | Build established: Hacker-Sprinter 2143 | -4/Factory | Core integrity fell below 50% 2149 | -4/Factory | Discovered new exit (range 14) 2156 | -4/Factory | Core integrity fell below 20% 2156 | -4/Factory | Identified exit to Armory 2156 | -4/Factory | Entered Armory 2183 | -4/Armory | Lost 25 parts (5p11n7u2w) 2432 | -4/Armory | Build established: Scout 2569 | -4/Armory | Spotted B-86 Titan 2635 | -4/Armory | Discovered new exit (range 22) 2682 | -4/Armory | Identified exit to Research 2683 | -4/Armory | Destroyed by Y-72 Warden with Quantum Rifle Last Messages --------------- 02662_ Critical hit (Burn: +50). 02665_ Penetrated by Slug. 02668_ Imp. Plasma Cutter destroyed. 02668_ Penetrated by Slug. 02673_ Lgt. Antimatter Reactor destroyed. 02675_ Penetrated by Slug. 02677_ C-30 ARC bursts open, deploying its payload. 02677_ H-77 Assassin unfolds itself. 02677_ Slug penetrates Wall. 02677_ Penetrated by Slug. 02680_ Slug penetrates Y-72 Warden. 02680_ Penetrated by Slug. 02680_ Acquired 10 matter. 02680_ Adv. Terrain Scan Processor destroyed. 02681_ Lrn. Terrain Scanner destroyed. 02681_ Slug penetrates Y-72 Warden. 02681_ ALERT: Hostiles spotted, dispatching reinforcements to Terminal A010. 02682_ EXIT=IDENTIFIED: RESEARCH 02683_ System corrupted: Matter fused (-7). Map ----- +----------------------------------------------------+ | ????????#?????#####??#?###########?##??#####?##### | | ????????#??##??##?######??########?#?########?##?# | | ??????##?#?????#####?##?######?##?################ | | ?????##????#?######??##?#############?##########?# | | ???????#????#??#?#?##??#######"""################# | | ?????#??#??##??#######?#?#####"R"###?#########??## | | ????????#?#?####?###?#?#######" "################# | | ????#??? ? #?#?##### ![[# | | ???????? ? ? ?##?###### """"" ![ # | | ????????? ? ??#?######## "" F" =![ # | | ???????? ?? ? ?######### "" "" = # [[[ | | ??????? ? ? ? ??###?##### ] # [[[ | | ????????###+##??##?######?#######/###### ] | | ???????#?? + ? #########?## + ]] | | ???????#?# ?# ?#########?## ###### | | ?????? ??# ??"?T"" ##?###?#?### ###?## | | ?????? ??#? ???"??" ?#######?#?#Y ###### | | ?????? ??# ?# ? ###?######## #########+###### | | ??????? ??? ??#????#?#?###?#?###g ######## ? | | ??????? ????#######??########## ##?#####? | | ???????#?#?#######?#### ###?## # ###? ### | | ?????? ???###?###??#### ! ####?# # #??# ? ### | | ??????????##??######! # # ### # #### ##? | | ?????? ?? ??### /Y! hY g ### | | ??????????##### g ! / h/% g ### | | ?????????#????#? ### # @# !###|| """ ?### | | ???????????#?##??####?#/Y ######| """ ### | | ????????#??###? ?###?# !###?## """ ?## | | ???????? ?? ? ? ?#?##########?## ### | | ??????????? ?? ? ?####? ? ?? ##? | | ??????? ??#??#? ???#?##?#??##??#####+## ? | | ???????????????? ######?###?####?? ## # | | ????????? ?#????????### #?#???## ? " ## ??? | | ?????????????## ##?#?#?###?#??? ? ? ?# ?? | | ????????? ?????? ??#????#???#### ? ?? ## "?? ??? | | ?????????????? ???????? ?###??#??? " ##"???? ???? | | ????????????????o??#?????#?????? ? #?????? ???? | | ?????????????? ?T?#???# ???##??#???????#??"? ????? | | ?????????????#????#??????## ????? ? ?? ? ????????? | | ?????????????????#???#??????? ???????? ?????? ???? | | ??????????????????????? ??#?? ??? ?? ???? ?? ? ??? | | ??????????????????????????# ??????? ???????? ???? | | ??????????????????????? ? ?????? ? ?????????????? | | ????????????????? ?????H ?? ?????????????????????? | | ??????????????????????????? ???? ???? ?#? ???????? | | ??????????????????????#?????????????????? ???????? | | ?????????????????????????????????????????????????? | | ??????????????????????????"??????????????????????? | | ?????????????????????????????? ??????????????????? | | ?????????????????????????????????????????????????? | +----------------------------------------------------+ Best States ------------- Heat Dissipation 43 Energy Generation 26 Energy Capacity 360 Matter Stores 300 Matter Capacity 300 Sight Range 16 Robot Scan Range 15 Terrain Scan Range 24 Terrain Scan Density 210 ECM Strength 2 Jamming Range 12 Armor Coverage 225 Evasion (%) 71 Offensive Hacking 10 Defensive Hacking 10 Item Schematics ----------------- None Robot Schematics ------------------ None Fabricated ------------ Nothing Repaired ---------- Imp. Sensor Array | 31% | -7/Factory Mining Claw | 5% | -7/Factory Studied --------- Xenon Bombardment Thruster | -5/Factory | Hacked Alien Tech Used ----------------- None Achievements -------------- Item+ Join The Dark Side Junior Dev Challenges ------------ None Game ------ Seed BladeRagnarokMatrix Manual? 0 Play Time 01:05:59 Cumulative 92.5 hours Start 2026.03.28 @ 20:15:56 End 2026.03.28 @ 21:26:54 Sessions 1 Manual Loads 0 Difficulty Rogue Special Mode None Game No. 40 Rogue 40 Adventurer 0 Explorer 0 Win Type - Total 1 Types 1/0/0/0/0/0/0/0/0/0 Lore% 33 Gallery% 44 Achievement% 31 Wizard Run 0 Options --------- Layout 0 ASCII 0 Keyboard 0 Movement Numpad Keybinds 0 Fullscreen 2 Font 24/Smallcaps Map View 76x50 Zoom Use 0% Tactical HUD 1 Map Filters NONE Filters NONE Steam 1 RUN: 7b2b4af5-31cd-4fda-98ac-127f4ca841c8